bitfinex-derivatives/quotes_ETHF0:USTF0_20250831
["timestamp","ask_amount","ask_price","bid_price","bid_amount"]
[1756613930367,0.227,4474.0,4473.1,0.2937]
[1756613930567,0.4961,4473.3,4473.2,0.4903]
[1756613935179,0.1978,4473.3,4473.0,3.2078]
[1756613935376,0.1978,4473.4,4473.3,0.4903]
[1756613935678,0.4961,4473.4,4473.3,0.4903]
[1756613936877,0.1117,4473.6,4473.5,0.1966]
[1756613937078,0.6078,4473.6,4473.5,3.6981]
[1756613937375,0.6078,4473.6,4473.5,0.1966]
[1756613937569,0.6078,4473.6,4473.3,0.227]
[1756613938173,0.6078,4473.6,4473.0,3.2078]
[1756613938174,0.3095,4473.6,4473.0,3.2078]
[1756613938370,0.4961,4473.5,4473.4,0.4903]
[1756613938774,0.1117,4473.6,4473.5,0.2937]
[1756613938970,0.6078,4473.6,4473.5,3.6981]
[1756613939770,0.1117,4473.6,4473.5,3.6981]
[1756613943074,0.1117,4473.6,4473.5,3.9251]
[1756613951197,0.2939,4475.0,4473.6,0.40232]
[1756613951394,0.483,4474.5,4474.4,0.4898]
[1756613952097,0.483,4474.5,4474.4,0.2016]
[1756613952293,0.483,4474.5,4474.0,0.2882]
[1756613952796,0.483,4474.5,4473.9,0.227]
[1756613953697,0.483,4474.4,4474.3,3.6976]
[1756613961200,3.2078,4475.7,4474.5,0.40223]
[1756613961399,3.2078,4475.7,4473.7,1.00579]
[1756613961400,0.70647,4475.5,4475.4,0.4898]
[1756613961606,0.483,4475.5,4475.4,0.4898]
[1756613965410,0.1891,4474.9,4474.8,3.6976]
[1756613965606,0.483,4474.9,4474.8,3.6976]
[1756613972011,0.483,4474.9,4474.8,3.2078]
[1756613972319,0.1891,4474.6,4474.5,0.4898]
[1756613972615,0.483,4474.6,4474.5,0.4898]
[1756613974615,0.2939,4475.3,4474.5,0.2016]
[1756613974821,0.483,4475.3,4475.2,0.4898]
[1756613975121,0.483,4475.3,4475.2,0.2016]
[1756613975415,0.1891,4474.9,4474.8,0.4898]
[1756613975620,0.483,4474.9,4474.8,0.4898]
[1756613977323,0.2939,4475.5,4474.9,0.2882]
[1756613977525,0.483,4475.5,4475.4,0.2016]
[1756613977720,0.483,4475.5,4475.4,0.4966]
[1756613978323,0.71,4475.5,4475.4,0.4966]
[1756613981928,0.483,4475.5,4475.4,0.4966]
[1756613992638,0.2853,4476.1,4475.5,0.295]
[1756613992838,0.4751,4476.1,4476.0,0.4936]
[1756613993039,0.7021,4476.1,4476.0,0.4936]
[1756613995539,3.2078,4476.2,4476.0,0.1986]
[1756613995748,0.4168,4476.5,4476.4,0.1986]
[1756613996045,0.7021,4476.5,4476.4,0.1986]
[1756613996244,0.7021,4476.5,4476.4,0.4936]
[1756613996646,0.4751,4476.5,4476.4,0.4936]
[1756613997739,0.2853,4476.8,4476.4,0.1986]
[1756613997946,0.4751,4476.6,4476.5,0.4936]
[1756614000945,0.2853,4476.8,4476.7,0.4936]
[1756614001346,0.4751,4476.8,4476.7,0.4936]
[1756614002357,0.1898,4476.3,4476.2,0.4936]
[1756614002552,0.4751,4476.2,4476.1,3.2078]
[1756614002748,0.4751,4476.2,4475.9,0.295]
[1756614003550,0.1898,4475.8,4475.7,0.4936]
[1756614003746,0.4751,4475.8,4475.7,0.4936]
[1756614004151,0.2853,4475.8,4475.7,0.4936]
[1756614004449,0.227,4476.5,4475.7,0.4936]
[1756614004650,0.4751,4476.4,4476.3,0.1986]
[1756614004852,0.7021,4476.4,4476.3,0.4936]
[1756614005151,0.4751,4476.4,4476.3,0.4936]
[1756614005353,0.7021,4476.4,4476.3,0.4936]
[1756614006554,0.7021,4476.4,4475.6,3.60993]
[1756614006754,0.227,4476.4,4475.7,0.295]
[1756614006955,0.2853,4476.3,4475.7,0.295]
[1756614007960,0.4799,4475.8,4475.7,0.4936]
[1756614008459,0.4733,4476.3,4476.2,0.1847]
[1756614008652,0.4733,4476.3,4476.2,0.4798]
[1756614011659,0.227,4476.8,4476.2,0.4798]
[1756614011961,0.4102,4476.8,4476.7,0.1847]
[1756614012360,0.4102,4476.8,4476.5,0.2951]
[1756614012562,0.2901,4476.7,4476.5,0.2951]
[1756614012862,0.4733,4476.6,4476.5,0.4798]
[1756614014261,0.1832,4476.6,4476.1,3.2078]
[1756614014453,0.1832,4476.3,4476.2,0.4798]
[1756614014653,0.4733,4476.3,4476.2,0.4798]
[1756614026462,0.4933,4476.3,4476.2,0.4798]
[1756614026667,0.4733,4476.2,4476.1,3.2078]
[1756614026863,0.4733,4476.2,4476.1,3.5029]
[1756614027165,0.4733,4476.2,4476.1,3.6876]
[1756614027562,0.4933,4476.2,4476.1,3.6876]
[1756614030067,0.71671001,4476.2,4476.1,3.2078]
[1756614030263,0.71671001,4476.2,4475.5,0.5221]
[1756614030469,0.4733,4475.6,4475.5,0.7068]
[1756614030664,0.4933,4475.6,4475.5,3.6876]
[1756614031866,0.4933,4475.6,4475.5,3.3925]
[1756614032068,0.4933,4475.6,4475.1,0.227]
[1756614032462,0.4933,4475.6,4475.2,0.2951]
[1756614032669,0.02,4475.4,4475.3,0.1847]
[1756614032864,0.4933,4475.4,4475.3,0.4798]
[1756614035865,0.02,4475.4,4475.3,0.4798]
[1756614040062,0.3115,4475.4,4475.3,0.7068]
[1756614040268,0.5138,4475.4,4475.3,0.7068]
[1756614040464,0.5138,4475.4,4475.3,0.4798]
[1756614041072,0.02,4475.4,4475.3,0.4798]
[1756614041373,0.3115,4475.4,4475.3,0.4798]
[1756614041574,0.5138,4475.4,4475.3,0.4798]
[1756614047774,0.02,4475.4,4475.3,0.4798]
[1756614049074,0.3115,4475.4,4475.3,0.7068]
[1756614050679,0.5138,4475.4,4475.3,0.4798]
[1756614053879,0.3115,4475.4,4475.3,0.4798]
[1756614054684,0.5138,4475.4,4475.3,0.4798]
[1756614060690,0.02,4475.4,4475.3,0.4798]
[1756614061283,0.5138,4475.4,4475.3,0.4798]
[1756614062589,0.02,4475.4,4475.3,0.4798]
[1756614062792,0.02,4475.4,4475.3,0.88196]
[1756614063092,0.02,4475.4,4475.3,2.86366391]
[1756614063388,0.02,4475.4,4475.3,0.88196]
[1756614063785,0.02,4475.4,4475.3,1.10896]
[1756614070189,0.02,4475.4,4475.3,3.09066391]
[1756614072994,0.02,4475.4,4475.3,1.10896]
[1756614073894,0.02,4475.4,4475.3,0.88196]
[1756614074095,0.02,4475.4,4475.3,1.10896]
[1756614074797,0.5048,4475.4,4475.3,0.4798]
[1756614075396,0.5048,4475.4,4475.3,0.7058]
[1756614075894,0.5048,4475.4,4475.3,0.4798]
[1756614076093,0.5048,4475.4,4475.3,0.7058]
[1756614081394,0.02,4475.4,4475.3,0.7058]
[1756614085602,0.02,4475.4,4475.3,0.4798]
[1756614085809,0.02,4475.4,4475.3,0.7058]
[1756614088312,0.02,4475.4,4475.3,2.68750391]
[1756614089308,0.305,4475.4,4475.3,2.68750391]
[1756614089611,0.02,4475.4,4475.3,2.68750391]
[1756614090210,0.02,4475.4,4475.3,2.46150391]
[1756614090405,0.285,4476.3,4475.3,6.20770391]
[1756614090610,3.2078,4477.4,4476.3,0.40207]
[1756614090810,0.1998,4477.0,4476.9,3.2078]
[1756614091006,0.4848,4477.0,4476.9,3.5108]
[1756614091715,0.4848,4477.0,4476.9,3.6973]
[1756614094519,0.285,4477.0,4476.9,3.6973]
[1756614094813,0.226,4478.1,4477.0,0.303]
[1756614095007,0.285,4477.9,4477.0,0.303]
[1756614095607,0.285,4477.7,4477.0,0.303]
[1756614099111,0.4848,4477.7,4477.6,0.4773]
[1756614103120,0.4816,4477.7,4477.6,0.4773]
[1756614105320,0.1966,4477.5,4477.4,3.2078]
[1756614105524,0.4829,4477.5,4477.4,3.2078]
[1756614105719,0.4829,4477.5,4477.4,3.4986]
[1756614105919,0.4829,4477.5,4477.4,3.694]
[1756614107415,0.4829,4477.5,4476.9,3.2078]
[1756614107617,0.4829,4477.5,4476.2,0.40207]
[1756614107618,0.4829,4476.8,4476.7,0.4862]
[1756614107923,0.4829,4476.8,4476.7,0.7122]
[1756614108519,0.4829,4476.8,4476.7,0.4862]
[1756614108721,0.4829,4476.8,4476.7,0.7122]
[1756614108915,0.1966,4476.5,4476.3,3.2078]
[1756614109218,0.4829,4476.4,4475.7,32.173]
[1756614109428,0.4829,4476.4,4475.9,0.226]
[1756614109827,0.1966,4476.4,4475.9,0.5168]
[1756614110125,0.4829,4476.0,4475.9,0.7122]
[1756614110920,0.4829,4476.0,4475.9,0.4862]
[1756614111120,0.4829,4476.0,4475.9,0.1954]
[1756614113526,0.4829,4476.0,4475.9,0.4862]
[1756614114727,0.1966,4476.0,4475.7,0.2908]
[1756614115026,0.4829,4475.8,4475.7,0.4862]
[1756614115228,0.1966,4475.1,4475.0,3.92]
[1756614115429,0.4829,4475.1,4475.0,3.92]
[1756614116729,0.4829,4475.1,4475.0,3.694]
[1756614116928,0.4829,4475.1,4475.0,3.2078]
[1756614117129,0.4829,4475.1,4475.0,3.694]
[1756614117628,0.4829,4475.1,4475.0,3.4986]
[1756614117829,0.4829,4475.1,4475.0,3.694]
[1756614122234,0.3923,4476.2,4475.1,0.2908]
[1756614122534,0.2863,4476.1,4475.2,0.2908]
[1756614122735,0.50973001,4476.1,4475.2,0.2908]
[1756614122936,0.22343001,4476.0,4475.2,0.2908]
[1756614123138,0.2863,4476.1,4475.2,0.2908]
[1756614123437,0.50973001,4476.1,4475.2,0.2908]
[1756614123636,0.22343001,4476.0,4475.2,0.2908]
[1756614123840,0.2863,4475.9,4475.2,0.2908]
[1756614125738,0.4829,4475.3,4475.2,0.4862]
[1756614126536,0.4829,4475.2,4475.1,0.2908]
[1756614127528,0.1966,4475.2,4474.9,3.2078]
[1756614127730,0.4877,4474.6,4474.5,0.4964]
[1756614127931,0.4877,4474.6,4474.5,0.7224]
[1756614128436,0.4877,4474.6,4474.5,0.4964]
[1756614128636,0.4877,4474.6,4474.5,0.7224]
[1756614129243,0.4877,4474.6,4474.5,0.4964]
[1756614129538,3.2078,4476.3,4474.6,0.3007]
[1756614129739,3.4093,4476.3,4476.2,0.1957]
[1756614130035,3.4093,4476.3,4476.2,0.4964]
[1756614130242,3.6955,4476.3,4476.2,0.4964]
[1756614130835,0.4877,4476.3,4476.2,0.4964]
[1756614133848,0.4877,4477.1,4477.0,0.4964]
[1756614134049,0.2862,4477.3,4477.2,0.1957]
[1756614134346,0.2862,4477.3,4477.2,0.4964]
[1756614134541,0.4877,4477.3,4477.2,0.4964]
[1756614135339,0.4877,4477.3,4477.2,0.1957]
[1756614135744,0.4877,4477.3,4477.2,0.4964]
[1756614137639,0.4877,4477.3,4477.2,3.7042]
[1756614138350,7.85865,4477.3,4476.1,0.3007]
[1756614138644,3.2078,4476.5,4476.1,0.3007]
[1756614139557,0.18507336,4476.4,4475.3,0.3007]
[1756614139846,0.41107336,4476.3,4475.3,0.3007]
[1756614140048,0.18507336,4476.2,4475.3,0.3007]
[1756614140245,0.18507336,4476.1,4475.3,0.3007]
[1756614140441,0.18507336,4476.0,4475.9,0.4964]
[1756614140641,0.226,4476.3,4476.0,0.3007]
[1756614140846,0.18508408,4476.2,4476.0,0.3007]
[1756614141041,0.18508408,4476.1,4475.1,3.2078]
[1756614141347,0.18508408,4476.0,4475.2,0.3007]
[1756614141541,0.18508408,4475.9,4475.8,0.1957]
[1756614141744,0.18508408,4475.9,4475.8,0.4964]
[1756614143246,0.18668408,4475.9,4475.8,0.4964]
[1756614143551,0.18768408,4475.9,4475.8,0.4964]
[1756614146343,0.0026,4475.9,4475.8,0.4964]
[1756614147148,0.18767272,4475.9,4475.8,0.4964]
[1756614147340,0.18767506,4475.9,4475.8,0.4964]
[1756614147545,0.18507506,4475.9,4475.8,0.4964]
[1756614147744,3.2078,4476.5,4476.4,0.1957]
[1756614147947,3.2078,4476.5,4476.4,0.4964]
[1756614147948,3.39284035,4476.5,4476.4,0.4964]
[1756614149650,0.18504035,4476.5,4476.4,0.4964]
[1756614156450,0.57264035,4476.5,4476.4,0.4964]
[1756614157156,0.2015,4475.8,4475.7,0.4964]
[1756614157348,0.3876,4475.8,4475.7,0.4964]
[1756614158054,0.1855,4476.4,4475.8,0.2874]
[1756614158247,0.226,4476.8,4476.4,0.2874]
[1756614158449,0.226,4476.8,4476.7,0.4845]
[1756614158651,0.5985,4476.8,4476.7,0.4845]
[1756614159755,0.78517645,4476.8,4476.7,0.4845]
[1756614160054,0.18667645,4476.8,4476.7,0.4845]
[1756614160758,0.55917645,4476.8,4476.7,0.4845]
[1756614162060,0.1855,4476.1,4475.4,3.2078]
[1756614162362,0.187,4475.1,4474.2,3.2078]
[1756614162555,0.55923879,4475.0,4474.9,0.4845]
[1756614162761,0.187,4474.4,4474.3,0.4845]
[1756614162960,0.37373879,4474.4,4474.3,0.4845]
[1756614163157,0.55923879,4474.4,4474.3,0.4845]
[1756614163352,0.37373879,4474.4,4473.5,3.2078]
[1756614163552,0.37223879,4474.3,4473.6,0.2874]
[1756614163754,0.55923879,4474.2,4474.1,0.4845]
[1756614164857,0.18673879,4474.2,4474.1,0.4845]
[1756614165455,0.55923879,4474.2,4474.1,0.2874]
[1756614165655,0.55923879,4474.2,4474.1,0.4845]
[1756614165656,0.37373879,4474.2,4474.1,0.4845]
[1756614165857,0.18673879,4474.2,4474.1,0.4845]
[1756614167858,0.1117,4474.4,4474.3,0.1971]
[1756614168059,0.29812818,4474.4,4474.3,0.4845]
[1756614169669,0.48512818,4474.4,4474.3,0.4845]
[1756614170560,0.29812818,4474.4,4474.3,0.4845]
[1756614171364,0.67062818,4474.4,4474.3,0.4845]
[1756614174573,0.29812818,4474.4,4474.3,0.4845]
[1756614175268,0.67062818,4474.4,4474.3,0.4845]
[1756614176174,0.48512818,4474.4,4474.3,0.4845]
[1756614177273,0.67062818,4474.4,4474.3,0.4845]
[1756614178579,0.67031421,4474.4,4474.3,0.4845]
[1756614179081,0.67031273,4474.4,4474.3,0.4845]
[1756614180980,0.29781273,4474.4,4474.3,0.4845]
[1756614181877,0.1117,4474.4,4474.3,0.4845]
[1756614182073,3.3933,4475.6,4474.4,0.40224]
[1756614182268,3.6228,4475.6,4475.5,0.4845]
[1756614182469,3.80894765,4475.6,4475.5,0.4845]
[1756614182776,3.62194765,4475.6,4475.5,0.4845]
[1756614183079,3.80894765,4475.6,4475.5,0.4845]
[1756614183275,4.09584765,4475.6,4475.5,0.4845]
[1756614183676,3.86784765,4475.6,4475.5,0.4845]
[1756614183878,0.66004765,4475.6,4475.5,0.4845]
[1756614185680,0.37314765,4475.6,4474.7,0.2874]
[1756614185880,0.187,4475.4,4475.3,0.1971]
[1756614186074,0.66004765,4475.4,4475.3,0.4845]
[1756614187985,0.4739,4475.4,4475.3,0.4845]
[1756614188186,0.66427837,4475.4,4475.3,0.4845]
[1756614191680,0.66458426,4475.4,4475.3,0.4845]
[1756614192082,0.2877,4475.3,4474.8,0.2849]
[1756614192382,0.228,4475.7,4474.8,0.4797]
[1756614192383,0.1984,4474.9,4474.8,0.4797]
[1756614192587,0.19068426,4474.9,4474.8,0.70315]
[1756614192886,0.19068426,4474.9,4474.8,0.1948]
[1756614193283,0.19068426,4475.1,4474.8,0.4797]
[1756614193484,0.4861,4475.0,4474.9,0.4797]
[1756614193679,0.67678426,4475.0,4474.9,0.4797]
[1756614194185,0.19068426,4475.0,4474.9,0.4797]
[1756614194487,0.19068426,4475.0,4474.9,0.1948]
[1756614194890,0.19068426,4475.1,4474.9,0.1948]
[1756614195090,0.19068426,4475.0,4474.9,0.1948]
[1756614195389,0.19084895,4475.0,4474.9,0.1948]
[1756614195889,0.19084895,4475.0,4474.9,0.4797]
[1756614196084,0.67694895,4475.0,4474.9,0.4797]
[1756614198992,0.6770078,4475.0,4474.9,0.4797]
[1756614199286,0.1984,4474.5,4474.4,0.1948]
[1756614199493,0.6770078,4474.5,4474.4,0.4797]
[1756614199681,0.67706539,4474.5,4474.4,0.4797]
[1756614201091,0.2877,4474.4,4473.8,0.2849]
[1756614201292,0.67706539,4474.3,4474.2,0.1948]
[1756614201491,0.67706539,4474.3,4474.2,0.4797]
[1756614203587,0.19096539,4474.3,4474.2,3.6875]
[1756614205584,0.67706539,4474.3,4474.2,3.6875]
[1756614207892,0.19096539,4474.3,4474.2,3.6875]
[1756614208895,0.2877,4475.5,4474.2,7.85309999]
[1756614209098,3.6939,4475.7,4475.6,0.1948]
[1756614209297,3.6939,4475.7,4475.6,0.4797]
[1756614209991,7.91733001,4475.7,4475.0,0.2849]
[1756614210191,3.6939,4475.7,4475.0,0.2849]
[1756614210497,0.4861,4475.1,4475.0,0.4797]
[1756614212693,3.4358,4475.7,4474.3,0.227]
[1756614212892,0.4861,4474.4,4474.3,0.7067]
[1756614213096,0.4861,4474.4,4474.3,0.4797]
[1756614221599,0.497,4474.2,4474.1,0.2901]
[1756614222004,0.497,4474.2,4474.1,0.4847]
[1756614223202,0.2964,4473.8,4473.6,0.2901]
[1756614223402,3.2078,4474.7,4473.6,0.2901]
[1756614223403,0.497,4473.7,4473.6,0.4847]
[1756614223603,0.2006,4473.7,4473.5,3.2078]
[1756614223804,0.497,4473.6,4473.5,3.2078]
[1756614224002,0.497,4473.6,4473.5,3.4979]
[1756614224309,0.497,4473.6,4473.5,3.6925]
[1756614225605,0.2006,4473.6,4472.9,0.2901]
[1756614225804,0.497,4472.5,4472.4,3.6925]
[1756614228214,0.2006,4472.5,4472.0,0.2901]
[1756614228408,0.497,4472.0,4471.9,3.6925]
[1756614229910,0.497,4472.0,4471.9,0.4847]
[1756614230408,0.2006,4471.9,4471.8,0.1946]
[1756614230607,0.497,4471.9,4471.8,0.4847]
[1756614230999,0.497,4471.9,4471.3,3.2078]
[1756614231202,0.2006,4471.8,4471.7,0.4847]
[1756614231409,0.497,4471.8,4471.7,0.4847]
[1756614232010,3.5042,4472.0,4471.8,0.2901]
[1756614232211,3.4084,4472.0,4471.9,0.4847]
[1756614232412,3.4084,4472.0,4471.9,0.1946]
[1756614232608,0.2964,4471.9,4471.4,0.2901]
[1756614232807,0.2006,4471.5,4471.4,0.4847]
[1756614233105,0.2964,4471.9,4471.5,0.2901]
[1756614233310,0.497,4471.9,4471.8,0.4847]
[1756614234911,0.497,4471.9,4471.8,0.1946]
[1756614235714,0.497,4471.9,4471.8,0.4847]
[1756614241117,0.497,4472.2,4472.1,0.4847]
[1756614241327,3.7048,4472.5,4472.4,0.4847]
[1756614241519,3.7048,4472.5,4471.5,0.2901]
[1756614242218,3.7048,4472.5,4472.4,0.1946]
[1756614242418,3.7048,4472.5,4472.4,0.4847]
[1756614243013,3.7048,4472.5,4471.4,0.227]
[1756614243014,0.497,4472.9,4472.8,0.1946]
[1756614243232,0.497,4472.9,4472.8,0.373]
[1756614244318,3.2078,4473.0,4472.9,0.2901]
[1756614244517,3.2078,4473.0,4472.9,0.4847]
[1756614247023,0.2964,4472.9,4472.4,0.2901]
[1756614247224,0.497,4472.5,4472.4,0.4847]
[1756614247619,0.276,4472.4,4472.3,3.2078]
[1756614247821,0.4784,4472.4,4472.3,3.2078]
[1756614248124,0.4784,4472.4,4472.1,0.2989]
[1756614248522,0.4784,4472.4,4471.5,3.2078]
[1756614248523,0.2024,4472.4,4471.6,0.2989]
[1756614248722,0.4784,4471.7,4471.6,0.5007]
[1756614249525,3.2078,4472.5,4471.5,3.2078]
[1756614249526,0.276,4472.4,4471.7,0.2989]
[1756614250622,0.4784,4471.8,4471.7,0.5007]
[1756614252020,3.2078,4472.5,4471.5,3.2078]
[1756614252021,0.276,4472.4,4471.8,0.2989]
[1756614252316,0.2024,4471.9,4471.8,0.5007]
[1756614252518,0.4784,4471.9,4471.8,0.5007]
[1756614252723,3.2078,4472.5,4471.5,3.2078]
[1756614252724,0.4784,4472.0,4471.9,0.5007]
[1756614253226,0.4784,4472.0,4471.9,0.2018]
[1756614254827,0.4784,4472.0,4471.6,0.2989]
[1756614255230,0.4784,4471.6,4471.5,3.2078]
[1756614256229,0.2024,4471.1,4471.0,4.4096]
[1756614256431,0.276,4471.3,4471.0,4.4096]
[1756614256632,0.4784,4471.3,4471.2,0.5007]
[1756614258236,0.4784,4471.3,4471.2,0.2018]
[1756614258531,0.4784,4471.3,4471.2,0.5007]
[1756614262228,0.4784,4471.3,4471.2,0.2018]
[1756614264425,0.4784,4471.3,4471.0,1.0]
[1756614264625,0.4784,4471.1,4471.0,1.0]
[1756614265325,0.4784,4471.1,4471.0,1.5007]
[1756614267738,0.2024,4471.1,4471.0,1.5007]
[1756614268038,0.227,4471.2,4471.0,1.5007]
[1756614268439,0.7054,4471.2,4471.1,0.5007]
[1756614269941,0.276,4471.1,4471.0,1.0]
[1756614270130,0.4784,4471.1,4471.0,1.5007]
[1756614271141,0.2024,4471.1,4471.0,1.5007]
[1756614271440,0.4784,4471.1,4471.0,1.0]
[1756614272638,0.7054,4471.1,4471.0,1.5007]
[1756614273039,4.65306001,4471.1,4469.5,0.2989]
[1756614273252,3.2078,4469.8,4469.7,0.5007]
[1756614273542,3.6862,4469.8,4469.7,0.5007]
[1756614275346,3.6862,4469.8,4469.7,0.2018]
[1756614275546,3.4102,4469.8,4469.0,0.2989]
[1756614275742,3.4102,4469.8,4468.9,3.2078]
[1756614275743,0.2024,4469.6,4468.9,3.2078]
[1756614276043,0.4784,4469.1,4469.0,0.5007]
[1756614276238,0.229,4469.1,4469.0,0.5007]
[1756614276438,0.276,4469.4,4469.1,0.2989]
[1756614276744,0.4784,4469.4,4469.3,0.5007]
[1756614276942,0.7074,4469.4,4469.3,0.5007]
[1756614279142,0.4314,4469.4,4469.3,0.5007]
[1756614279337,3.2078,4469.8,4469.4,0.2836]
[1756614279545,3.4368,4469.8,4469.7,0.4731]
[1756614279937,3.6217,4469.8,4469.7,0.4731]
[1756614280242,3.897,4469.8,4469.7,0.4731]
[1756614281444,3.3927,4469.8,4469.7,0.4731]
[1756614281643,0.229,4469.9,4469.8,0.4731]
[1756614281839,0.4139,4470.1,4470.0,0.1895]
[1756614282141,0.6892,4470.1,4470.0,0.4731]
[1756614290250,0.4602,4470.1,4470.0,0.4731]
[1756614290451,0.6892,4470.1,4470.0,0.4731]
[1756614291649,0.4602,4470.1,4470.0,0.4731]
[1756614291851,0.229,4470.2,4470.1,0.4731]
[1756614292149,0.4139,4470.2,4470.1,0.4731]
[1756614292349,0.6892,4470.2,4470.1,0.4731]
[1756614292550,0.4602,4470.2,4470.1,0.4731]
[1756614292754,3.2078,4470.9,4470.3,0.1895]
[1756614292956,0.229,4470.8,4470.7,0.1895]
[1756614293146,0.4139,4470.8,4470.7,0.4731]
[1756614293346,0.6892,4470.8,4470.7,0.4731]
[1756614294247,3.2078,4470.9,4470.8,0.4731]
[1756614294442,3.668,4470.9,4470.8,0.4731]
[1756614296252,3.668,4470.9,4470.8,0.1895]
[1756614296454,3.897,4470.9,4470.6,0.125]
[1756614297157,3.668,4470.9,4470.6,0.125]
[1756614297357,0.4602,4470.7,4470.6,0.125]
[1756614297654,0.4602,4470.7,4470.6,0.5981]
[1756614303871,0.6882,4470.7,4470.6,0.5981]
[1756614305367,0.4602,4470.7,4470.6,0.5981]
[1756614305574,0.2753,4471.3,4470.7,0.2836]
[1756614305877,0.6882,4471.2,4471.1,0.4731]
[1756614306579,0.6882,4471.2,4470.7,0.2836]
[1756614306974,0.6882,4471.2,4470.6,0.125]
[1756614307174,0.6882,4471.2,4470.7,0.2836]
[1756614307373,0.6882,4471.2,4471.1,0.4731]
[1756614307572,0.4602,4471.2,4471.1,0.4731]
[1756614307872,0.6882,4471.2,4471.1,0.4731]
[1756614308878,0.4602,4471.2,4471.1,0.4731]
[1756614309174,0.7163,4471.3,4471.2,0.4981]
[1756614310175,0.4883,4471.3,4471.2,0.4981]
[1756614310477,3.2078,4471.4,4471.3,0.4981]
[1756614311079,3.2078,4471.4,4471.3,5.12427]
[1756614311277,3.2078,4471.4,4471.3,4.90062]
[1756614311479,0.228,4472.1,4471.3,7.81252]
[1756614311677,0.228,4472.1,4472.0,0.4981]
[1756614312073,0.301,4472.2,4472.0,0.4981]
[1756614312269,0.4883,4472.2,4472.1,0.4981]
[1756614319480,0.1873,4472.2,4472.1,0.4981]
[1756614319882,0.4883,4472.2,4472.1,0.4981]
[1756614322390,0.4883,4472.6,4472.5,0.2022]
[1756614322585,3.2078,4472.7,4472.6,0.4981]
[1756614323293,3.6961,4472.7,4472.6,0.4981]
[1756614325391,0.4883,4472.7,4472.6,0.4981]
[1756614329699,0.301,4473.0,4472.6,0.4981]
[1756614329900,0.4883,4473.1,4473.0,0.4981]
[1756614337600,0.4883,4473.1,4472.9,0.1509]
[1756614337798,0.7009,4473.0,4472.9,0.1509]
[1756614338101,0.7009,4473.0,4472.4,0.1255]
[1756614338302,0.4739,4472.5,4472.4,0.1255]
[1756614343704,0.4739,4472.5,4472.4,0.6205]
[1756614343903,0.7009,4472.5,4472.4,0.6205]
[1756614344202,0.41,4472.8,4472.7,0.1911]
[1756614344407,0.41,4472.8,4472.4,0.1255]
[1756614344608,0.183,4472.5,4472.4,0.1255]
[1756614344804,0.4739,4472.5,4472.4,0.1255]
[1756614345712,0.7009,4472.5,4472.4,0.4294]
[1756614345905,0.7009,4472.5,4472.4,0.6205]
[1756614346810,0.4739,4472.5,4472.4,0.6205]
[1756614349914,0.4739,4472.5,4471.4,0.227]
[1756614349915,0.4739,4472.5,4471.4,0.3039]
[1756614350114,1.06961189,4472.5,4471.4,0.3039]
[1756614350314,0.4739,4471.5,4471.4,0.495]
[1756614358519,3.3908,4472.1,4472.0,0.1911]
[1756614358719,3.3908,4472.1,4472.0,0.495]
[1756614359121,3.6817,4472.1,4472.0,0.495]
[1756614359314,0.183,4472.2,4471.5,0.227]
[1756614359619,0.4739,4471.5,4471.4,0.722]
[1756614359921,0.4739,4471.5,4471.4,0.495]
[1756614360511,0.183,4471.5,4471.0,0.3039]
[1756614360713,0.4739,4470.7,4470.6,0.495]
[1756614361818,0.183,4470.6,4470.0,3.2078]
[1756614362017,0.4739,4470.2,4470.1,0.495]
[1756614362518,0.183,4470.2,4470.1,0.495]
[1756614364016,0.2909,4470.5,4470.4,0.1911]
[1756614364220,3.2078,4471.0,4470.4,0.495]
[1756614364520,0.41,4471.3,4470.2,0.3039]
[1756614364712,0.183,4471.3,4470.3,0.227]
[1756614365219,0.4739,4471.2,4471.1,0.495]
[1756614365420,3.3908,4471.6,4471.5,0.495]
[1756614366122,3.6817,4471.6,4471.5,0.495]
[1756614366520,3.6817,4471.6,4471.2,0.3039]
[1756614366714,0.2909,4471.5,4470.5,0.119]
[1756614366919,0.2909,4471.5,4470.6,0.3039]
[1756614368021,0.7009,4471.5,4471.4,0.4748]
[1756614368730,0.41,4471.5,4470.7,3.2078]
[1756614369023,0.4915,4470.9,4470.8,0.4831]
[1756614369418,0.1925,4470.9,4470.8,0.4831]
[1756614369618,0.299,4471.4,4470.9,0.2837]
[1756614370020,0.4915,4471.0,4470.9,0.4831]
[1756614371525,0.1925,4471.0,4470.9,0.4831]
[1756614373128,0.299,4471.3,4470.9,0.4831]
[1756614373328,0.227,4471.5,4471.0,0.2837]
[1756614373626,0.1925,4471.5,4471.4,0.4831]
[1756614374028,0.4915,4471.5,4471.4,0.4831]
[1756614375730,0.4915,4471.5,4470.7,3.2078]
[1756614375922,0.299,4471.4,4470.8,0.2837]
[1756614376126,0.4915,4470.9,4470.8,0.4831]
[1756614377533,0.4915,4471.5,4471.4,0.4831]
[1756614378726,0.4915,4470.9,4470.8,0.4831]
[1756614380526,0.1925,4470.2,4470.1,0.4831]
[1756614380732,0.4915,4470.2,4470.1,0.4831]
[1756614382738,0.4915,4470.2,4469.5,3.2078]
[1756614382943,0.1925,4469.7,4469.6,0.4831]